[Event "Late-Titled-Tuesday-Blitz-April-16-2024"]
[Site "Chess.com"]
[Date "2024.04.16"]
[Round "1"]
[White "TangerineandLemon25"]
[Black "Respectful_Dave"]
[Result "1-0"]
[WhiteElo "2593"]
[BlackElo "2251"]
[TimeControl "180+1"]
[EndTime "14:07:21 PDT"]
[Termination "TangerineandLemon25 won on time"]

1. e4 {[%clk 0:02:59.9]} 1... d5 {[%clk 0:02:58.2]} 2. exd5 {[%clk 0:02:58.6]}
2... Nf6 {[%clk 0:02:57.8]} 3. d4 {[%clk 0:02:58.1]} 3... Nxd5 {[%clk
0:02:54.5]} 4. Nf3 {[%clk 0:02:58.7]} 4... g6 {[%clk 0:02:53.3]} 5. Be2 {[%clk
0:02:58.7]} 5... Bg7 {[%clk 0:02:53.4]} 6. O-O {[%clk 0:02:59.4]} 6... O-O
{[%clk 0:02:53.4]} 7. c4 {[%clk 0:02:57.6]} 7... Nb6 {[%clk 0:02:50.6]} 8. Be3
{[%clk 0:02:56.6]} 8... Bg4 {[%clk 0:02:38.3]} 9. Nbd2 {[%clk 0:02:55.6]} 9...
N8d7 {[%clk 0:02:29.6]} 10. Rc1 {[%clk 0:02:34.2]} 10... c6 {[%clk 0:02:12.3]}
11. h3 {[%clk 0:02:02.5]} 11... Bxf3 {[%clk 0:02:09.5]} 12. Nxf3 {[%clk
0:02:03.4]} 12... e5 {[%clk 0:01:38.2]} 13. Qb3 {[%clk 0:01:34.8]} 13... exd4
{[%clk 0:01:11.4]} 14. Bxd4 {[%clk 0:01:33.9]} 14... Re8 {[%clk 0:01:08.9]} 15.
Rfe1 {[%clk 0:01:07.5]} 15... Bxd4 {[%clk 0:00:59.2]} 16. Nxd4 {[%clk
0:01:08.4]} 16... Nc5 {[%clk 0:00:59.4]} 17. Qd1 {[%clk 0:00:40.2]} 17... Qf6
{[%clk 0:00:57.1]} 18. b4 {[%clk 0:00:39.6]} 18... Ne4 {[%clk 0:00:53.9]} 19.
Bf3 {[%clk 0:00:34.2]} 19... Ng5 {[%clk 0:00:42.7]} 20. Rxe8+ {[%clk 0:00:22.9]}
20... Rxe8 {[%clk 0:00:42.5]} 21. c5 {[%clk 0:00:23.8]} 21... Nxf3+ {[%clk
0:00:24.6]} 22. Nxf3 {[%clk 0:00:24.7]} 22... Nd5 {[%clk 0:00:24.9]} 23. b5
{[%clk 0:00:24.5]} 23... Nf4 {[%clk 0:00:22.3]} 24. Kh1 {[%clk 0:00:17.4]} 24...
cxb5 {[%clk 0:00:20.9]} 25. Qd2 {[%clk 0:00:17]} 25... a6 {[%clk 0:00:19.7]} 26.
Qd7 {[%clk 0:00:16.6]} 26... Qc6 {[%clk 0:00:19.2]} 27. Qg4 {[%clk 0:00:14.3]}
27... h5 {[%clk 0:00:18.9]} 28. Qxf4 {[%clk 0:00:14.1]} 28... Re4 {[%clk
0:00:15.2]} 29. Qb8+ {[%clk 0:00:13]} 29... Kg7 {[%clk 0:00:15.6]} 30. Qd6
{[%clk 0:00:13.9]} 30... Ra4 {[%clk 0:00:13.9]} 31. Qxc6 {[%clk 0:00:13.3]}
31... bxc6 {[%clk 0:00:14.8]} 32. Ne5 {[%clk 0:00:13.8]} 32... Rxa2 {[%clk
0:00:11.7]} 33. Nxc6 {[%clk 0:00:14]} 33... Rd2 {[%clk 0:00:05.1]} 34. Na5
{[%clk 0:00:10.1]} 34... Rd8 {[%clk 0:00:02.2]} 35. c6 {[%clk 0:00:10.4]} 35...
Rc8 {[%clk 0:00:02.6]} 36. Nb7 {[%clk 0:00:09.6]} 36... Rc7 {[%clk 0:00:01.4]}
37. Nd6 {[%clk 0:00:09.6]} 37... Kf8 {[%clk 0:00:01.1]} 38. Nb7 {[%clk
0:00:08.9]} 1-0

[Event "Late-Titled-Tuesday-Blitz-April-16-2024"]
[Site "Chess.com"]
[Date "2024.04.16"]
[Round "1"]
[White "Leebit02"]
[Black "DonJuanEGenaro"]
[Result "1-0"]
[WhiteElo "2543"]
[BlackElo "1983"]
[TimeControl "180+1"]
[EndTime "14:07:22 PDT"]
[Termination "Leebit02 won on time"]

1. d4 {[%clk 0:03:00.3]} 1... e5 {[%clk 0:03:00.9]} 2. dxe5 {[%clk 0:02:59.1]}
2... d6 {[%clk 0:02:59.5]} 3. exd6 {[%clk 0:02:45.1]} 3... Bxd6 {[%clk 0:02:58]}
4. Nf3 {[%clk 0:02:33.6]} 4... c6 {[%clk 0:02:57.5]} 5. e3 {[%clk 0:02:33.3]}
5... Nf6 {[%clk 0:02:54]} 6. Be2 {[%clk 0:02:32.9]} 6... Nbd7 {[%clk 0:02:52.5]}
7. O-O {[%clk 0:02:31.1]} 7... Qc7 {[%clk 0:02:49.9]} 8. h3 {[%clk 0:01:55.8]}
8... O-O {[%clk 0:02:42.4]} 9. b3 {[%clk 0:01:49]} 9... Ne5 {[%clk 0:02:24.5]}
10. Bb2 {[%clk 0:01:48.5]} 10... Nxf3+ {[%clk 0:02:20.3]} 11. Bxf3 {[%clk
0:01:48.3]} 11... Nd7 {[%clk 0:02:01.2]} 12. Nd2 {[%clk 0:01:41.4]} 12... Ne5
{[%clk 0:01:58.2]} 13. Be2 {[%clk 0:01:37.3]} 13... Bf5 {[%clk 0:01:52]} 14. e4
{[%clk 0:01:31.2]} 14... Bd7 {[%clk 0:01:44.8]} 15. c4 {[%clk 0:01:23.8]} 15...
Rad8 {[%clk 0:01:39.4]} 16. Qc2 {[%clk 0:01:23.6]} 16... f5 {[%clk 0:01:29.4]}
17. c5 {[%clk 0:01:20.8]} 17... Be7 {[%clk 0:01:27.1]} 18. f4 {[%clk 0:01:15.9]}
18... Ng6 {[%clk 0:01:21.8]} 19. e5 {[%clk 0:01:05.3]} 19... Kh8 {[%clk
0:01:19.1]} 20. b4 {[%clk 0:01:00.7]} 20... a5 {[%clk 0:01:16.8]} 21. a3 {[%clk
0:00:59.3]} 21... axb4 {[%clk 0:01:15.5]} 22. axb4 {[%clk 0:00:59.7]} 22... b6
{[%clk 0:01:15.3]} 23. Bd4 {[%clk 0:00:55.7]} 23... b5 {[%clk 0:01:08.4]} 24.
Be3 {[%clk 0:00:48.2]} 24... Be6 {[%clk 0:01:02.8]} 25. Nf3 {[%clk 0:00:48.3]}
25... Ra8 {[%clk 0:00:49.4]} 26. Nd4 {[%clk 0:00:48.2]} 26... Bd7 {[%clk
0:00:40.1]} 27. e6 {[%clk 0:00:42.6]} 27... Rxa1 {[%clk 0:00:38.4]} 28. Rxa1
{[%clk 0:00:43.3]} 28... Bc8 {[%clk 0:00:27.4]} 29. Nxf5 {[%clk 0:00:41.1]}
29... Nxf4 {[%clk 0:00:20.1]} 30. Bxf4 {[%clk 0:00:38.9]} 30... Qxf4 {[%clk
0:00:18.1]} 31. Rf1 {[%clk 0:00:34.1]} 31... Qc7 {[%clk 0:00:12.8]} 32. Qe4
{[%clk 0:00:30.3]} 32... Rf6 {[%clk 0:00:07.7]} 33. Nd4 {[%clk 0:00:21.1]} 33...
Rxf1+ {[%clk 0:00:06.3]} 34. Bxf1 {[%clk 0:00:21.8]} 34... Qd8 {[%clk
0:00:06.1]} 35. Nxc6 {[%clk 0:00:21.3]} 35... Qe8 {[%clk 0:00:05.7]} 36. Nxe7
{[%clk 0:00:20.2]} 36... Qxe7 {[%clk 0:00:05.9]} 37. Bxb5 {[%clk 0:00:20.7]}
37... Qxe6 {[%clk 0:00:05.9]} 38. Qxe6 {[%clk 0:00:20.7]} 38... Bxe6 {[%clk
0:00:05.9]} 39. c6 {[%clk 0:00:21]} 39... Kg8 {[%clk 0:00:03.1]} 40. Ba6 {[%clk
0:00:21.1]} 1-0

[Event "Late-Titled-Tuesday-Blitz-April-16-2024"]
[Site "Chess.com"]
[Date "2024.04.16"]
[Round "1"]
[White "RianKapriaga"]
[Black "Glidzhian_Gor"]
[Result "1-0"]
[WhiteElo "2298"]
[BlackElo "2585"]
[TimeControl "180+1"]
[EndTime "14:07:24 PDT"]
[Termination "RianKapriaga won by resignation"]

1. d4 {[%clk 0:03:00.7]} 1... c5 {[%clk 0:02:58.9]} 2. d5 {[%clk 0:02:59.7]}
2... Nf6 {[%clk 0:02:58.4]} 3. Nc3 {[%clk 0:02:59.2]} 3... d6 {[%clk 0:02:58.6]}
4. e4 {[%clk 0:02:57.4]} 4... g6 {[%clk 0:02:58.6]} 5. Nf3 {[%clk 0:02:56.5]}
5... Bg7 {[%clk 0:02:58.6]} 6. Be2 {[%clk 0:02:55.8]} 6... O-O {[%clk 0:02:59]}
7. O-O {[%clk 0:02:55]} 7... e6 {[%clk 0:02:59.1]} 8. Nd2 {[%clk 0:02:52.2]}
8... exd5 {[%clk 0:02:53.9]} 9. exd5 {[%clk 0:02:51.4]} 9... Re8 {[%clk
0:02:53.3]} 10. Nc4 {[%clk 0:02:49.5]} 10... Ne4 {[%clk 0:02:45.4]} 11. Nxe4
{[%clk 0:02:46.5]} 11... Rxe4 {[%clk 0:02:46.3]} 12. c3 {[%clk 0:02:39.2]} 12...
b5 {[%clk 0:02:34.2]} 13. Nd2 {[%clk 0:02:36.6]} 13... Re8 {[%clk 0:02:31.6]}
14. Bxb5 {[%clk 0:02:33.5]} 14... Bd7 {[%clk 0:02:28.9]} 15. Bxd7 {[%clk
0:02:29.5]} 15... Nxd7 {[%clk 0:02:29.8]} 16. Nc4 {[%clk 0:02:25.6]} 16... Ne5
{[%clk 0:02:21.3]} 17. Nxe5 {[%clk 0:02:24]} 17... Rxe5 {[%clk 0:02:22.2]} 18.
Bf4 {[%clk 0:02:16.6]} 18... Rf5 {[%clk 0:02:18.6]} 19. Qd2 {[%clk 0:02:11.7]}
19... Rb8 {[%clk 0:02:09.6]} 20. Rfe1 {[%clk 0:01:58.7]} 20... Qb6 {[%clk
0:01:42.4]} 21. Re2 {[%clk 0:01:50.8]} 21... c4 {[%clk 0:00:40.3]} 22. h3 {[%clk
0:01:26.5]} 22... Qc5 {[%clk 0:00:36.6]} 23. Rd1 {[%clk 0:01:23.6]} 23... h5
{[%clk 0:00:34.4]} 24. g4 {[%clk 0:00:59.2]} 24... Rf6 {[%clk 0:00:32.3]} 25.
Kg2 {[%clk 0:00:47.5]} 25... hxg4 {[%clk 0:00:18.4]} 26. hxg4 {[%clk 0:00:47.5]}
26... g5 {[%clk 0:00:17.1]} 27. Bxg5 {[%clk 0:00:45.4]} 27... Rg6 {[%clk
0:00:17.7]} 28. f3 {[%clk 0:00:42.9]} 28... a5 {[%clk 0:00:15.4]} 29. Be3 {[%clk
0:00:37.2]} 29... Qc8 {[%clk 0:00:14.5]} 30. Bd4 {[%clk 0:00:33.1]} 30... Bh6
{[%clk 0:00:14.8]} 31. Be3 {[%clk 0:00:30.9]} 31... Rxg4+ {[%clk 0:00:14]} 32.
fxg4 {[%clk 0:00:29.2]} 32... Qxg4+ {[%clk 0:00:14.9]} 33. Kf1 {[%clk
0:00:23.8]} 33... Qh3+ {[%clk 0:00:14.9]} 34. Rg2+ {[%clk 0:00:23.5]} 34... Kh7
{[%clk 0:00:14.9]} 35. Bxh6 {[%clk 0:00:20.1]} 35... Qh1+ {[%clk 0:00:15]} 36.
Kf2 {[%clk 0:00:18.3]} 36... Qh4+ {[%clk 0:00:15.2]} 37. Kg1 {[%clk 0:00:17.9]}
37... Qxh6 {[%clk 0:00:12.8]} 38. Rh2 {[%clk 0:00:15.4]} 38... Rg8+ {[%clk
0:00:12.7]} 39. Kh1 {[%clk 0:00:15.8]} 39... Rg6 {[%clk 0:00:12.9]} 40. Rxh6+
{[%clk 0:00:15.2]} 40... Rxh6+ {[%clk 0:00:13.8]} 41. Qxh6+ {[%clk 0:00:14.5]}
41... Kxh6 {[%clk 0:00:14.7]} 42. Kg2 {[%clk 0:00:15.4]} 1-0

[Event "Late-Titled-Tuesday-Blitz-April-16-2024"]
[Site "Chess.com"]
[Date "2024.04.16"]
[Round "1"]
[White "PapaieDudu"]
[Black "arenal72"]
[Result "1-0"]
[WhiteElo "2342"]
[BlackElo "2614"]
[TimeControl "180+1"]
[EndTime "14:07:26 PDT"]
[Termination "PapaieDudu won by checkmate"]

1. Nf3 {[%clk 0:03:00.9]} 1... d6 {[%clk 0:02:58.6]} 2. e4 {[%clk 0:03:00.1]}
2... Nf6 {[%clk 0:02:57.1]} 3. Nc3 {[%clk 0:03:00.1]} 3... e5 {[%clk 0:02:56.1]}
4. Bc4 {[%clk 0:03:00.1]} 4... Be7 {[%clk 0:02:54.3]} 5. d4 {[%clk 0:02:59.8]}
5... exd4 {[%clk 0:02:53.9]} 6. Nxd4 {[%clk 0:02:59.8]} 6... O-O {[%clk
0:02:54.1]} 7. O-O {[%clk 0:02:59.3]} 7... c6 {[%clk 0:02:54.6]} 8. Be3 {[%clk
0:02:58.6]} 8... Re8 {[%clk 0:02:43.4]} 9. h3 {[%clk 0:02:54.1]} 9... Bf8 {[%clk
0:02:41.2]} 10. Qf3 {[%clk 0:02:47.1]} 10... Nbd7 {[%clk 0:02:38.6]} 11. Nf5
{[%clk 0:02:37.2]} 11... Ne5 {[%clk 0:02:36.1]} 12. Qe2 {[%clk 0:02:35.4]} 12...
Bxf5 {[%clk 0:02:31.4]} 13. exf5 {[%clk 0:02:35.4]} 13... Nxc4 {[%clk 0:02:19]}
14. Qxc4 {[%clk 0:02:35.2]} 14... d5 {[%clk 0:02:19.4]} 15. Qd3 {[%clk
0:02:33.5]} 15... Ne4 {[%clk 0:02:13.2]} 16. Nxe4 {[%clk 0:02:27.7]} 16... Rxe4
{[%clk 0:02:12.3]} 17. c3 {[%clk 0:02:23.5]} 17... Qd7 {[%clk 0:02:10.5]} 18. g4
{[%clk 0:02:21.1]} 18... b6 {[%clk 0:02:03.5]} 19. Rad1 {[%clk 0:02:19.9]} 19...
Rae8 {[%clk 0:02:01.8]} 20. Bg5 {[%clk 0:02:12.9]} 20... h5 {[%clk 0:01:55.1]}
21. f3 {[%clk 0:02:10.9]} 21... Bc5+ {[%clk 0:01:51.5]} 22. Kh1 {[%clk
0:02:00.6]} 22... Re2 {[%clk 0:01:48.8]} 23. Rd2 {[%clk 0:01:58]} 23... Rxd2
{[%clk 0:01:48.4]} 24. Qxd2 {[%clk 0:01:58.3]} 24... Qd6 {[%clk 0:01:43.1]} 25.
b4 {[%clk 0:01:47.5]} 25... Qg3 {[%clk 0:01:22.1]} 26. bxc5 {[%clk 0:01:44.9]}
26... Qxh3+ {[%clk 0:01:12.7]} 27. Kg1 {[%clk 0:01:45.4]} 27... hxg4 {[%clk
0:01:12.8]} 28. fxg4 {[%clk 0:01:40.7]} 28... Qxg4+ {[%clk 0:01:09.1]} 29. Qg2
{[%clk 0:01:41.3]} 29... Qc4 {[%clk 0:01:08.6]} 30. Bf6 {[%clk 0:01:31.8]} 30...
Qxc5+ {[%clk 0:01:01.4]} 31. Bd4 {[%clk 0:01:32.4]} 31... Qf8 {[%clk 0:00:58.9]}
32. Rf3 {[%clk 0:01:15.5]} 32... f6 {[%clk 0:00:54.3]} 33. Rg3 {[%clk
0:01:10.3]} 33... Qf7 {[%clk 0:00:47.2]} 34. Rg6 {[%clk 0:01:08.1]} 34... Kf8
{[%clk 0:00:43.1]} 35. Qh2 {[%clk 0:00:58.1]} 35... c5 {[%clk 0:00:24.3]} 36.
Bxf6 {[%clk 0:00:36.1]} 36... gxf6 {[%clk 0:00:11.7]} 37. Qh6+ {[%clk
0:00:35.4]} 37... Ke7 {[%clk 0:00:12.4]} 38. Kf2 {[%clk 0:00:20.4]} 38... Rg8
{[%clk 0:00:12.8]} 39. Qe3+ {[%clk 0:00:18.4]} 39... Kd8 {[%clk 0:00:11.3]} 40.
Qg3 {[%clk 0:00:13.6]} 40... Re8 {[%clk 0:00:07]} 41. Rg7 {[%clk 0:00:13]} 41...
Qh5 {[%clk 0:00:05]} 42. Qc7# {[%clk 0:00:12.8]} 1-0

[Event "Late-Titled-Tuesday-Blitz-April-16-2024"]
[Site "Chess.com"]
[Date "2024.04.16"]
[Round "1"]
[White "MarceloPlaya"]
[Black "Stanbad1"]
[Result "1/2-1/2"]
[WhiteElo "2327"]
[BlackElo "2614"]
[TimeControl "180+1"]
[EndTime "14:07:26 PDT"]
[Termination "Game drawn by repetition"]

1. e4 {[%clk 0:03:00.9]} 1... e6 {[%clk 0:02:59.4]} 2. d4 {[%clk 0:03:00.2]}
2... d5 {[%clk 0:02:59.3]} 3. Nc3 {[%clk 0:02:59.9]} 3... Nf6 {[%clk 0:02:59.3]}
4. Bd3 {[%clk 0:02:55.4]} 4... c5 {[%clk 0:02:58]} 5. Nf3 {[%clk 0:02:54.6]}
5... Nc6 {[%clk 0:02:57]} 6. exd5 {[%clk 0:02:53.9]} 6... exd5 {[%clk
0:02:44.1]} 7. O-O {[%clk 0:02:52.3]} 7... c4 {[%clk 0:02:37.8]} 8. Re1+ {[%clk
0:02:48.3]} 8... Be7 {[%clk 0:02:37.2]} 9. Bf1 {[%clk 0:02:48.2]} 9... O-O
{[%clk 0:02:33.2]} 10. b3 {[%clk 0:02:47.4]} 10... Bb4 {[%clk 0:02:31]} 11. Bb2
{[%clk 0:02:38.2]} 11... Qa5 {[%clk 0:02:29.9]} 12. a3 {[%clk 0:01:57.4]} 12...
Bxc3 {[%clk 0:02:28.5]} 13. b4 {[%clk 0:01:57.1]} 13... Bxb2 {[%clk 0:02:01]}
14. bxa5 {[%clk 0:01:55.9]} 14... Bxa1 {[%clk 0:02:01.4]} 15. Qxa1 {[%clk
0:01:54.4]} 15... Bf5 {[%clk 0:02:01.3]} 16. a6 {[%clk 0:01:41.9]} 16... bxa6
{[%clk 0:01:58.3]} 17. Ne5 {[%clk 0:01:40.9]} 17... Rac8 {[%clk 0:01:54.9]} 18.
Qc3 {[%clk 0:01:36]} 18... Ne4 {[%clk 0:01:52.6]} 19. Qf3 {[%clk 0:01:24.4]}
19... Nxd4 {[%clk 0:01:49.4]} 20. Qf4 {[%clk 0:01:15.3]} 20... Be6 {[%clk
0:01:46.4]} 21. f3 {[%clk 0:01:00.7]} 21... g5 {[%clk 0:01:33.8]} 22. Qc1 {[%clk
0:00:49.3]} 22... Nd6 {[%clk 0:01:30.1]} 23. Qxg5+ {[%clk 0:00:47.1]} 23... Kh8
{[%clk 0:01:30]} 24. Qf6+ {[%clk 0:00:43.3]} 24... Kg8 {[%clk 0:01:30.1]} 25.
Ng4 {[%clk 0:00:43.2]} 25... Bxg4 {[%clk 0:01:26.8]} 26. fxg4 {[%clk 0:00:37.1]}
26... Ne6 {[%clk 0:01:24.7]} 27. Re3 {[%clk 0:00:30.7]} 27... Ne8 {[%clk
0:01:20.8]} 28. Qh6 {[%clk 0:00:28.5]} 28... N8g7 {[%clk 0:01:13.7]} 29. Rh3
{[%clk 0:00:26]} 29... f6 {[%clk 0:01:13.7]} 30. Qxh7+ {[%clk 0:00:25]} 30...
Kf7 {[%clk 0:01:14]} 31. Rh6 {[%clk 0:00:22.2]} 31... Ke7 {[%clk 0:01:11.3]} 32.
Qg6 {[%clk 0:00:21.3]} 32... Rf7 {[%clk 0:01:11.2]} 33. g3 {[%clk 0:00:19.9]}
33... Ng5 {[%clk 0:01:09.2]} 34. Bg2 {[%clk 0:00:18.2]} 34... Rd8 {[%clk
0:01:07.6]} 35. h4 {[%clk 0:00:16.3]} 35... N5e6 {[%clk 0:01:07.7]} 36. g5
{[%clk 0:00:14.9]} 36... fxg5 {[%clk 0:01:05.4]} 37. hxg5 {[%clk 0:00:14.4]}
37... d4 {[%clk 0:01:04.3]} 38. Bh3 {[%clk 0:00:13.6]} 38... Rd6 {[%clk
0:01:02.8]} 39. Qe4 {[%clk 0:00:11.6]} 39... d3 {[%clk 0:01:01.7]} 40. cxd3
{[%clk 0:00:11.6]} 40... cxd3 {[%clk 0:01:02.6]} 41. Bxe6 {[%clk 0:00:10.9]}
41... Nxe6 {[%clk 0:01:03.5]} 42. Rxe6+ {[%clk 0:00:08.2]} 42... Rxe6 {[%clk
0:01:03.1]} 43. Qxd3 {[%clk 0:00:08.5]} 43... Kf8 {[%clk 0:01:02.8]} 44. g6
{[%clk 0:00:07.9]} 44... Rfe7 {[%clk 0:01:02.2]} 45. Qd4 {[%clk 0:00:06.3]}
45... Rxg6 {[%clk 0:01:00.7]} 46. Kg2 {[%clk 0:00:05]} 46... Reg7 {[%clk
0:00:59.2]} 47. Qd8+ {[%clk 0:00:04.3]} 47... Kf7 {[%clk 0:00:59.3]} 48. Qd7+
{[%clk 0:00:04.5]} 48... Kg8 {[%clk 0:00:59.5]} 49. Qd5+ {[%clk 0:00:02.6]}
49... Kh7 {[%clk 0:00:58.4]} 50. Qh5+ {[%clk 0:00:02.3]} 50... Rh6 {[%clk
0:00:58.3]} 51. Qf5+ {[%clk 0:00:02.3]} 51... Kh8 {[%clk 0:00:56.8]} 52. Qf8+
{[%clk 0:00:02.3]} 52... Kh7 {[%clk 0:00:56.1]} 53. Qf5+ {[%clk 0:00:02.5]}
53... Rgg6 {[%clk 0:00:56.2]} 54. Qf7+ {[%clk 0:00:02.6]} 54... Kh8 {[%clk
0:00:56.4]} 55. Qf8+ {[%clk 0:00:02.7]} 55... Kh7 {[%clk 0:00:56.4]} 56. Qf7+
{[%clk 0:00:03]} 56... Rg7 {[%clk 0:00:56.6]} 57. Qf5+ {[%clk 0:00:02.9]}
1/2-1/2

[Event "Late-Titled-Tuesday-Blitz-April-16-2024"]
[Site "Chess.com"]
[Date "2024.04.16"]
[Round "1"]
[White "DrVelja"]
[Black "ozates"]
[Result "1-0"]
[WhiteElo "3023"]
[BlackElo "2520"]
[TimeControl "180+1"]
[EndTime "14:07:27 PDT"]
[Termination "DrVelja won by resignation"]

1. e4 {[%clk 0:03:00.9]} 1... c5 {[%clk 0:02:59.1]} 2. Nf3 {[%clk 0:03:00.6]}
2... Nc6 {[%clk 0:02:58.6]} 3. Bb5 {[%clk 0:03:00.5]} 3... g6 {[%clk 0:02:55]}
4. O-O {[%clk 0:02:59.6]} 4... Bg7 {[%clk 0:02:53.2]} 5. Re1 {[%clk 0:03:00.2]}
5... e5 {[%clk 0:02:46.2]} 6. Bxc6 {[%clk 0:03:00.1]} 6... dxc6 {[%clk
0:02:47.1]} 7. a3 {[%clk 0:02:58.8]} 7... c4 {[%clk 0:02:37.6]} 8. Qe2 {[%clk
0:02:52.4]} 8... Be6 {[%clk 0:02:35.7]} 9. a4 {[%clk 0:02:47.8]} 9... b5 {[%clk
0:02:27.9]} 10. d3 {[%clk 0:02:32.9]} 10... h6 {[%clk 0:02:23]} 11. axb5 {[%clk
0:02:24.7]} 11... cxb5 {[%clk 0:02:21.9]} 12. Na3 {[%clk 0:02:24.8]} 12... cxd3
{[%clk 0:02:19.8]} 13. cxd3 {[%clk 0:02:23.3]} 13... a6 {[%clk 0:02:18.4]} 14.
Nc2 {[%clk 0:01:42.1]} 14... Ne7 {[%clk 0:02:14.3]} 15. d4 {[%clk 0:01:35]}
15... exd4 {[%clk 0:02:05.5]} 16. Rd1 {[%clk 0:01:24.3]} 16... Nc6 {[%clk
0:02:00.5]} 17. Be3 {[%clk 0:01:21]} 17... Bg4 {[%clk 0:01:41.1]} 18. e5 {[%clk
0:01:02.5]} 18... Bxf3 {[%clk 0:01:17.9]} 19. gxf3 {[%clk 0:00:57.4]} 19... O-O
{[%clk 0:01:07]} 20. f4 {[%clk 0:00:57.1]} 20... Qh4 {[%clk 0:00:41.6]} 21. Nxd4
{[%clk 0:00:55]} 21... Ne7 {[%clk 0:00:40]} 22. Qf3 {[%clk 0:00:50.6]} 22...
Rfd8 {[%clk 0:00:37.3]} 23. Nxb5 {[%clk 0:00:38.7]} 23... axb5 {[%clk
0:00:30.7]} 24. Rxa8 {[%clk 0:00:36.9]} 24... Rxa8 {[%clk 0:00:29.1]} 25. Qxa8+
{[%clk 0:00:37.8]} 25... Kh7 {[%clk 0:00:29.7]} 26. Qf3 {[%clk 0:00:36.3]} 26...
Nf5 {[%clk 0:00:27.1]} 27. Rd7 {[%clk 0:00:36.1]} 27... Kg8 {[%clk 0:00:14.1]}
28. Bc5 {[%clk 0:00:36.1]} 28... g5 {[%clk 0:00:07.4]} 29. h3 {[%clk 0:00:22]}
29... gxf4 {[%clk 0:00:07.2]} 30. Qg4 {[%clk 0:00:22.6]} 30... Qxg4+ {[%clk
0:00:05.5]} 31. hxg4 {[%clk 0:00:23.5]} 31... Nh4 {[%clk 0:00:04.4]} 32. Rb7
{[%clk 0:00:21.9]} 32... Bxe5 {[%clk 0:00:02.3]} 33. Rxb5 {[%clk 0:00:21.2]}
33... Ng6 {[%clk 0:00:01.6]} 34. b4 {[%clk 0:00:20.6]} 34... Bc3 {[%clk
0:00:01.5]} 35. Rb8+ {[%clk 0:00:20]} 35... Kg7 {[%clk 0:00:01.6]} 36. b5 {[%clk
0:00:20.9]} 36... Ne5 {[%clk 0:00:01.9]} 37. b6 {[%clk 0:00:19.9]} 37... Nxg4
{[%clk 0:00:02.5]} 38. b7 {[%clk 0:00:19.6]} 38... Be5 {[%clk 0:00:02.6]} 39.
Re8 {[%clk 0:00:19.2]} 39... Bc7 {[%clk 0:00:02.5]} 40. Bb6 {[%clk 0:00:18.6]}
40... Bxb6 {[%clk 0:00:02.5]} 41. b8=Q {[%clk 0:00:18.5]} 1-0

[Event "Late-Titled-Tuesday-Blitz-April-16-2024"]
[Site "Chess.com"]
[Date "2024.04.16"]
[Round "1"]
[White "Zhigalko_Sergei"]
[Black "ACollins05"]
[Result "0-1"]
[WhiteElo "2921"]
[BlackElo "2514"]
[TimeControl "180+1"]
[EndTime "14:07:27 PDT"]
[Termination "ACollins05 won by checkmate"]

1. e4 {[%clk 0:03:00.9]} 1... a6 {[%clk 0:02:59.8]} 2. d4 {[%clk 0:03:00.5]}
2... b5 {[%clk 0:02:59.9]} 3. Nf3 {[%clk 0:02:58.6]} 3... Bb7 {[%clk 0:03:00.2]}
4. Bd3 {[%clk 0:02:58.4]} 4... e6 {[%clk 0:03:00.5]} 5. O-O {[%clk 0:02:57.6]}
5... c5 {[%clk 0:03:00.7]} 6. c3 {[%clk 0:02:57.8]} 6... d6 {[%clk 0:03:01]} 7.
a4 {[%clk 0:02:51.7]} 7... c4 {[%clk 0:02:58.9]} 8. Bc2 {[%clk 0:02:52]} 8...
Nd7 {[%clk 0:02:59.5]} 9. axb5 {[%clk 0:02:47.4]} 9... axb5 {[%clk 0:02:59]} 10.
Rxa8 {[%clk 0:02:48.3]} 10... Qxa8 {[%clk 0:02:59.1]} 11. Na3 {[%clk 0:02:49.2]}
11... Qa6 {[%clk 0:02:37.4]} 12. b3 {[%clk 0:02:42.8]} 12... d5 {[%clk
0:02:33.5]} 13. b4 {[%clk 0:02:32.4]} 13... dxe4 {[%clk 0:02:31.5]} 14. Ne5
{[%clk 0:02:21.8]} 14... Ngf6 {[%clk 0:02:31]} 15. Nxd7 {[%clk 0:01:55.3]} 15...
Nxd7 {[%clk 0:02:30.7]} 16. Qh5 {[%clk 0:01:54.3]} 16... Bc6 {[%clk 0:02:27.9]}
17. Qg5 {[%clk 0:01:28.9]} 17... h6 {[%clk 0:02:22.3]} 18. Qg3 {[%clk
0:01:27.8]} 18... Qb7 {[%clk 0:02:19.1]} 19. Re1 {[%clk 0:01:22.2]} 19... Nf6
{[%clk 0:02:18.8]} 20. h3 {[%clk 0:01:01.6]} 20... g6 {[%clk 0:02:13.4]} 21. Bf4
{[%clk 0:00:43.4]} 21... Bg7 {[%clk 0:02:04.8]} 22. Bd6 {[%clk 0:00:42.5]} 22...
Kd7 {[%clk 0:01:54.2]} 23. Be5 {[%clk 0:00:32.3]} 23... Nh5 {[%clk 0:01:47.5]}
24. Qe3 {[%clk 0:00:30.5]} 24... f5 {[%clk 0:01:42.6]} 25. Ra1 {[%clk
0:00:22.6]} 25... Ra8 {[%clk 0:01:39.8]} 26. Bxg7 {[%clk 0:00:21.9]} 26... Nxg7
{[%clk 0:01:39.1]} 27. Qxh6 {[%clk 0:00:22.3]} 27... Ne8 {[%clk 0:01:36.7]} 28.
Qxg6 {[%clk 0:00:19.4]} 28... Nc7 {[%clk 0:01:29.4]} 29. Qg7+ {[%clk 0:00:15.2]}
29... Kd6 {[%clk 0:01:27.8]} 30. Qe5+ {[%clk 0:00:15]} 30... Kd7 {[%clk
0:01:27.7]} 31. Qg7+ {[%clk 0:00:14.7]} 31... Kd6 {[%clk 0:01:27.8]} 32. Qe5+
{[%clk 0:00:06.2]} 32... Kd7 {[%clk 0:01:28]} 33. h4 {[%clk 0:00:06.7]} 33...
Nd5 {[%clk 0:01:25.9]} 34. h5 {[%clk 0:00:06.9]} 34... Qc7 {[%clk 0:01:19.6]}
35. Qg7+ {[%clk 0:00:05.3]} 35... Kc8 {[%clk 0:01:18.7]} 36. Qg6 {[%clk
0:00:04.4]} 36... Kd7 {[%clk 0:01:15.7]} 37. h6 {[%clk 0:00:04]} 37... Kd6
{[%clk 0:01:13.9]} 38. Qg3+ {[%clk 0:00:03.7]} 38... Kd7 {[%clk 0:01:13.8]} 39.
Qg7+ {[%clk 0:00:03.7]} 39... Kd6 {[%clk 0:01:13.6]} 40. Qg3+ {[%clk 0:00:04]}
40... Kd7 {[%clk 0:01:13.7]} 41. Qh3 {[%clk 0:00:04.3]} 41... Nf4 {[%clk
0:01:07]} 42. Qh4 {[%clk 0:00:04.2]} 42... Rg8 {[%clk 0:01:01.8]} 43. h7 {[%clk
0:00:02.3]} 43... Rh8 {[%clk 0:00:53.8]} 44. Qh6 {[%clk 0:00:01]} 44... Kc8
{[%clk 0:00:44.7]} 45. Kf1 {[%clk 0:00:01.6]} 45... Rxh7 {[%clk 0:00:41.2]} 46.
Qf8+ {[%clk 0:00:02]} 46... Kb7 {[%clk 0:00:41]} 47. Kg1 {[%clk 0:00:02.2]}
47... Ne2+ {[%clk 0:00:35.8]} 48. Kf1 {[%clk 0:00:02.5]} 48... Nxc3 {[%clk
0:00:34.4]} 49. Kg1 {[%clk 0:00:02.2]} 49... Qh2+ {[%clk 0:00:30.6]} 50. Kf1
{[%clk 0:00:01.9]} 50... Qh1# {[%clk 0:00:31.5]} 0-1